[Event "Titled Tuesday Blitz October 18 Late 2022"]
[White "Romero Ruscalleda, Josep"]
[Black "Banzea, Alexandru-Bogdan"]
[WhiteFideId "2231859"]
[BlackFideId "1232622"]
[WhiteElo "2306"]
[BlackElo "2294"]
[Result "1-0"]
[Round "04"]
[TimeControl "180+1"]
[Date "2022.10.19"]
[WhiteClock "0:00:19"]
[BlackClock "0:00:01"]

1. e4 {[%clk 0:03:00]}  c6 {[%clk 0:01:18]} 2. Nc3 {[%clk 0:03:00]}  d5 {[%clk 0:01:19]} 3. Nf3 {[%clk 0:02:59]}  dxe4 {[%clk 0:01:19]} 4. Nxe4 {[%clk 0:02:59]}  Nf6 {[%clk 0:01:20]} 5. Qe2 {[%clk 0:02:59]}  Nxe4 {[%clk 0:01:20]} 6. Qxe4 {[%clk 0:02:59]}  Qa5 {[%clk 0:01:20]} 7. Bc4 {[%clk 0:02:58]}  Bf5 {[%clk 0:01:18]} 8. Qf4 {[%clk 0:02:58]}  e6 {[%clk 0:01:03]} 9. Nd4 {[%clk 0:02:50]}  Bg6 {[%clk 0:01:01]} 10. O-O {[%clk 0:02:47]}  Nd7 {[%clk 0:01:01]} 11. Bxe6 {[%clk 0:02:39]}  fxe6 {[%clk 0:00:35]} 12. Nxe6 {[%clk 0:02:39]}  Qe5 {[%clk 0:00:21]} 13. Qxe5 {[%clk 0:02:33]}  Nxe5 {[%clk 0:00:22]} 14. Re1 {[%clk 0:02:30]}  Bd6 {[%clk 0:00:20]} 15. d4 {[%clk 0:02:19]}  Kd7 {[%clk 0:00:18]} 16. dxe5 {[%clk 0:02:15]}  Kxe6 {[%clk 0:00:13]} 17. exd6+ {[%clk 0:02:14]}  Kxd6 {[%clk 0:00:14]} 18. Bf4+ {[%clk 0:02:11]}  Kc5 {[%clk 0:00:14]} 19. Re5+ {[%clk 0:01:59]}  Kb6 {[%clk 0:00:12]} 20. Be3+ {[%clk 0:01:49]}  Ka6 {[%clk 0:00:12]} 21. Re7 {[%clk 0:01:44]}  Rhg8 {[%clk 0:00:11]} 22. c3 {[%clk 0:01:38]}  Rae8 {[%clk 0:00:11]} 23. Rd7 {[%clk 0:01:36]}  Bf5 {[%clk 0:00:10]} 24. Rd4 {[%clk 0:01:31]}  Re4 {[%clk 0:00:10]} 25. Rad1 {[%clk 0:01:30]}  Rxd4 {[%clk 0:00:10]} 26. Rxd4 {[%clk 0:01:30]}  b6 {[%clk 0:00:08]} 27. f3 {[%clk 0:01:27]}  Re8 {[%clk 0:00:08]} 28. Kf2 {[%clk 0:01:26]}  Re7 {[%clk 0:00:07]} 29. Rd8 {[%clk 0:01:19]}  Rd7 {[%clk 0:00:07]} 30. Rf8 {[%clk 0:01:18]}  g6 {[%clk 0:00:06]} 31. g4 {[%clk 0:01:16]}  Be6 {[%clk 0:00:06]} 32. h4 {[%clk 0:01:13]}  c5 {[%clk 0:00:07]} 33. a3 {[%clk 0:01:11]}  Kb5 {[%clk 0:00:06]} 34. Rf6 {[%clk 0:01:07]}  Bd5 {[%clk 0:00:06]} 35. Bf4 {[%clk 0:01:03]}  Kc4 {[%clk 0:00:05]} 36. h5 {[%clk 0:00:22]}  Kd3 {[%clk 0:00:03]} 37. hxg6 {[%clk 0:00:21]}  hxg6 {[%clk 0:00:04]} 38. Rxg6 {[%clk 0:00:21]}  Rf7 {[%clk 0:00:04]} 39. Kg3 {[%clk 0:00:20]}  Kc2 {[%clk 0:00:04]} 40. Rd6 {[%clk 0:00:19]}  Bb7 {[%clk 0:00:03]} 41. Rd2+ {[%clk 0:00:20]}  Kb3 {[%clk 0:00:03]} 42. g5 {[%clk 0:00:20]}  Kc4 {[%clk 0:00:02]} 43. Kg4 {[%clk 0:00:20]}  b5 {[%clk 0:00:02]} 44. g6 {[%clk 0:00:20]}  Bc8+ {[%clk 0:00:02]} 45. Kg3 {[%clk 0:00:20]}  Rg7 {[%clk 0:00:01]} 46. Rd6 {[%clk 0:00:19]} 1-0


[Site "https://www.chess.com"]

[Event "Titled Tuesday Blitz October 18 Late 2022"]
[White "Rose, Felix"]
[Black "Marcolino, Daniel Mattos"]
[WhiteFideId "5105722"]
[BlackFideId "2106841"]
[WhiteElo "2039"]
[BlackElo "2048"]
[Result "1-0"]
[Round "04"]
[TimeControl "180+1"]
[Date "2022.10.19"]
[WhiteClock "0:00:15"]
[BlackClock "0:00:40"]

1. e4 {[%clk 0:03:00]}  c6 {[%clk 0:03:00]} 2. d4 {[%clk 0:03:00]}  d5 {[%clk 0:03:00]} 3. e5 {[%clk 0:03:00]}  c5 {[%clk 0:03:01]} 4. dxc5 {[%clk 0:03:00]}  e6 {[%clk 0:03:01]} 5. a3 {[%clk 0:03:01]}  Bxc5 {[%clk 0:03:02]} 6. Nf3 {[%clk 0:03:00]}  Nd7 {[%clk 0:02:50]} 7. b4 {[%clk 0:02:59]}  Be7 {[%clk 0:02:49]} 8. Bb2 {[%clk 0:02:58]}  a5 {[%clk 0:02:49]} 9. b5 {[%clk 0:02:57]}  Nh6 {[%clk 0:02:49]} 10. Nbd2 {[%clk 0:02:56]}  O-O {[%clk 0:02:48]} 11. Bd3 {[%clk 0:02:56]}  f6 {[%clk 0:02:45]} 12. O-O {[%clk 0:02:53]}  Nf7 {[%clk 0:02:43]} 13. exf6 {[%clk 0:02:52]}  Bxf6 {[%clk 0:02:43]} 14. Bxf6 {[%clk 0:02:51]}  Qxf6 {[%clk 0:02:43]} 15. c4 {[%clk 0:02:50]}  Nc5 {[%clk 0:02:29]} 16. Qc2 {[%clk 0:02:27]}  Nxd3 {[%clk 0:02:12]} 17. Qxd3 {[%clk 0:02:28]}  Rd8 {[%clk 0:02:10]} 18. Rfe1 {[%clk 0:02:14]}  e5 {[%clk 0:01:47]} 19. cxd5 {[%clk 0:02:06]}  Be6 {[%clk 0:01:43]} 20. Ne4 {[%clk 0:01:49]}  Qg6 {[%clk 0:01:32]} 21. Qc3 {[%clk 0:00:43]}  Rxd5 {[%clk 0:01:18]} 22. a4 {[%clk 0:00:38]}  b6 {[%clk 0:01:04]} 23. Qe3 {[%clk 0:00:27]}  Bf5 {[%clk 0:00:56]} 24. Ng3 {[%clk 0:00:17]}  Bg4 {[%clk 0:00:42]} 25. h3 {[%clk 0:00:15]}  Bxf3 {[%clk 0:00:42]} 26. Qxf3 {[%clk 0:00:16]}  Rc5 {[%clk 0:00:40]} 27. Qxa8+ {[%clk 0:00:15]} 1-0


[Site "https://www.chess.com"]

[Event "Titled Tuesday Blitz October 18 Late 2022"]
[White "Sernecki, Franciszek"]
[Black "Prydun, Andriy"]
[WhiteFideId "1169297"]
[BlackFideId "14145898"]
[WhiteElo "2209"]
[BlackElo "2163"]
[Result "0-1"]
[Round "04"]
[TimeControl "180+1"]
[Date "2022.10.19"]
[WhiteClock "0:00:38"]
[BlackClock "0:00:39"]

1. c4 {[%clk 0:03:00]}  Nf6 {[%clk 0:02:59]} 2. Nc3 {[%clk 0:03:01]}  c5 {[%clk 0:02:59]} 3. e4 {[%clk 0:03:01]}  d6 {[%clk 0:02:59]} 4. g3 {[%clk 0:03:01]}  e5 {[%clk 0:02:59]} 5. Bg2 {[%clk 0:03:02]}  Be7 {[%clk 0:02:58]} 6. Nge2 {[%clk 0:03:03]}  O-O {[%clk 0:02:58]} 7. d3 {[%clk 0:03:03]}  a6 {[%clk 0:02:57]} 8. O-O {[%clk 0:03:04]}  b5 {[%clk 0:02:57]} 9. cxb5 {[%clk 0:03:04]}  axb5 {[%clk 0:02:57]} 10. Nxb5 {[%clk 0:03:04]}  Nc6 {[%clk 0:02:57]} 11. Nbc3 {[%clk 0:03:04]}  Be6 {[%clk 0:02:57]} 12. Be3 {[%clk 0:03:04]}  Nd4 {[%clk 0:02:57]} 13. h3 {[%clk 0:03:02]}  Qb6 {[%clk 0:02:56]} 14. b3 {[%clk 0:02:22]}  Ra3 {[%clk 0:02:47]} 15. Bxd4 {[%clk 0:02:12]}  cxd4 {[%clk 0:02:41]} 16. Nb1 {[%clk 0:02:13]}  Ra7 {[%clk 0:02:40]} 17. Nd2 {[%clk 0:02:13]}  Rfa8 {[%clk 0:02:32]} 18. Qc2 {[%clk 0:02:10]}  Qb4 {[%clk 0:02:21]} 19. Nc4 {[%clk 0:02:08]}  Nd7 {[%clk 0:02:14]} 20. a3 {[%clk 0:01:58]}  Qb8 {[%clk 0:02:11]} 21. a4 {[%clk 0:01:56]}  Nc5 {[%clk 0:02:04]} 22. Rfb1 {[%clk 0:01:53]}  Rb7 {[%clk 0:01:39]} 23. b4 {[%clk 0:01:48]}  Rxb4 {[%clk 0:00:53]} 24. Rxb4 {[%clk 0:01:48]}  Qxb4 {[%clk 0:00:54]} 25. Nb2 {[%clk 0:01:28]}  Bb3 {[%clk 0:00:52]} 26. Qc1 {[%clk 0:01:25]}  Bd8 {[%clk 0:00:44]} 27. Qe1 {[%clk 0:01:16]}  Ba5 {[%clk 0:00:43]} 28. Qxb4 {[%clk 0:01:16]}  Bxb4 {[%clk 0:00:44]} 29. Bf1 {[%clk 0:01:13]}  Bc3 {[%clk 0:00:44]} 30. Nxc3 {[%clk 0:01:12]}  dxc3 {[%clk 0:00:45]} 31. Nc4 {[%clk 0:01:13]}  Rxa4 {[%clk 0:00:44]} 32. Rc1 {[%clk 0:01:07]}  Bxc4 {[%clk 0:00:44]} 33. dxc4 {[%clk 0:01:08]}  Ra3 {[%clk 0:00:45]} 34. f3 {[%clk 0:01:07]}  Ne6 {[%clk 0:00:41]} 35. f4 {[%clk 0:00:47]}  exf4 {[%clk 0:00:40]} 36. gxf4 {[%clk 0:00:48]}  Nxf4 {[%clk 0:00:39]} 37. Kf2 {[%clk 0:00:48]}  g5 {[%clk 0:00:38]} 38. Ke3 {[%clk 0:00:46]}  Kg7 {[%clk 0:00:37]} 39. h4 {[%clk 0:00:46]}  h6 {[%clk 0:00:37]} 40. hxg5 {[%clk 0:00:46]}  hxg5 {[%clk 0:00:38]} 41. Kd4 {[%clk 0:00:45]}  Kf6 {[%clk 0:00:37]} 42. Rxc3 {[%clk 0:00:42]}  Rxc3 {[%clk 0:00:37]} 43. Kxc3 {[%clk 0:00:43]}  Ke5 {[%clk 0:00:37]} 44. c5 {[%clk 0:00:35]}  dxc5 {[%clk 0:00:37]} 45. Kc4 {[%clk 0:00:36]}  Kxe4 {[%clk 0:00:36]} 46. Kxc5 {[%clk 0:00:37]}  g4 {[%clk 0:00:36]} 47. Kc4 {[%clk 0:00:35]}  g3 {[%clk 0:00:36]} 48. Kc3 {[%clk 0:00:36]}  g2 {[%clk 0:00:36]} 49. Bxg2+ {[%clk 0:00:36]}  Nxg2 {[%clk 0:00:37]} 50. Kd2 {[%clk 0:00:37]}  Kf3 {[%clk 0:00:37]} 51. Kd3 {[%clk 0:00:36]}  f5 {[%clk 0:00:38]} 52. Kd4 {[%clk 0:00:37]}  f4 {[%clk 0:00:39]} 53. Ke5 {[%clk 0:00:38]}  Kg3 {[%clk 0:00:39]} 0-1


[Site "https://www.chess.com"]

[Event "Titled Tuesday Blitz October 18 Late 2022"]
[White "Shapiro, Daniel"]
[Black "Omariev, Maksim"]
[WhiteFideId "2001780"]
[BlackFideId "4193423"]
[WhiteElo "2209"]
[BlackElo "2434"]
[Result "1-0"]
[Round "04"]
[TimeControl "180+1"]
[Date "2022.10.19"]
[WhiteClock "0:00:17"]
[BlackClock "0:00:01"]

1. d4 {[%clk 0:03:00]}  d5 {[%clk 0:02:52]} 2. c4 {[%clk 0:03:00]}  c6 {[%clk 0:02:51]} 3. Nf3 {[%clk 0:03:00]}  Nf6 {[%clk 0:02:51]} 4. Qb3 {[%clk 0:03:00]}  g6 {[%clk 0:02:43]} 5. Bg5 {[%clk 0:02:59]}  Bg7 {[%clk 0:02:44]} 6. e3 {[%clk 0:02:54]}  O-O {[%clk 0:02:43]} 7. Nc3 {[%clk 0:02:53]}  dxc4 {[%clk 0:02:30]} 8. Bxc4 {[%clk 0:02:51]}  b5 {[%clk 0:02:30]} 9. Be2 {[%clk 0:02:31]}  Be6 {[%clk 0:02:18]} 10. Qc2 {[%clk 0:02:30]}  Nbd7 {[%clk 0:02:01]} 11. h3 {[%clk 0:02:20]}  a5 {[%clk 0:01:46]} 12. O-O {[%clk 0:02:15]}  Qb6 {[%clk 0:01:36]} 13. e4 {[%clk 0:02:06]}  Rfc8 {[%clk 0:01:22]} 14. Be3 {[%clk 0:02:06]}  Qb7 {[%clk 0:01:16]} 15. Ng5 {[%clk 0:01:48]}  Nf8 {[%clk 0:01:15]} 16. Rad1 {[%clk 0:01:32]}  a4 {[%clk 0:00:55]} 17. b3 {[%clk 0:01:13]}  axb3 {[%clk 0:00:53]} 18. axb3 {[%clk 0:01:13]}  Ra3 {[%clk 0:00:45]} 19. Rb1 {[%clk 0:01:04]}  Rca8 {[%clk 0:00:13]} 20. f4 {[%clk 0:01:01]}  Bd7 {[%clk 0:00:09]} 21. Nf3 {[%clk 0:00:44]}  Be8 {[%clk 0:00:06]} 22. Ne5 {[%clk 0:00:43]}  N8d7 {[%clk 0:00:06]} 23. Nd3 {[%clk 0:00:39]}  Qb6 {[%clk 0:00:03]} 24. Bf3 {[%clk 0:00:36]}  Qb7 {[%clk 0:00:03]} 25. Nb4 {[%clk 0:00:31]}  Qb6 {[%clk 0:00:02]} 26. Rfe1 {[%clk 0:00:29]}  Qb7 {[%clk 0:00:02]} 27. e5 {[%clk 0:00:26]}  Nd5 {[%clk 0:00:02]} 28. Ncxd5 {[%clk 0:00:26]}  cxd5 {[%clk 0:00:03]} 29. Bxd5 {[%clk 0:00:26]}  Qb8 {[%clk 0:00:02]} 30. Nc6 {[%clk 0:00:20]}  Qc8 {[%clk 0:00:02]} 31. Nxe7+ {[%clk 0:00:19]}  Kf8 {[%clk 0:00:02]} 32. Nxc8 {[%clk 0:00:20]}  Rb8 {[%clk 0:00:01]} 33. Nd6 {[%clk 0:00:20]}  Nb6 {[%clk 0:00:01]} 34. Bc6 {[%clk 0:00:19]}  Bxc6 {[%clk 0:00:01]} 35. Qxc6 {[%clk 0:00:19]}  Ra2 {[%clk 0:00:02]} 36. Qc5 {[%clk 0:00:19]}  Kg8 {[%clk 0:00:01]} 37. Ne4 {[%clk 0:00:18]}  Bf8 {[%clk 0:00:01]} 38. Nd6 {[%clk 0:00:17]} 1-0


[Site "https://www.chess.com"]

[Event "Titled Tuesday Blitz October 18 Late 2022"]
[White "Shuvalov, Evgenij"]
[Black "Tsaruk, Maksim"]
[WhiteFideId "4187237"]
[BlackFideId "13511173"]
[WhiteElo "2531"]
[BlackElo "2704"]
[Result "0-1"]
[Round "04"]
[TimeControl "180+1"]
[Date "2022.10.19"]
[WhiteClock "0:00:11"]
[BlackClock "0:00:09"]

1. d4 {[%clk 0:03:00]}  d5 {[%clk 0:02:59]} 2. c4 {[%clk 0:03:00]}  e6 {[%clk 0:03:00]} 3. Nc3 {[%clk 0:02:59]}  Nf6 {[%clk 0:03:00]} 4. cxd5 {[%clk 0:02:59]}  exd5 {[%clk 0:03:00]} 5. Bg5 {[%clk 0:02:59]}  c6 {[%clk 0:03:00]} 6. Qc2 {[%clk 0:02:58]}  Be7 {[%clk 0:03:01]} 7. Nf3 {[%clk 0:02:58]}  Nbd7 {[%clk 0:02:59]} 8. e3 {[%clk 0:02:57]}  O-O {[%clk 0:02:55]} 9. Bd3 {[%clk 0:02:58]}  Re8 {[%clk 0:02:55]} 10. Ne5 {[%clk 0:02:54]}  Nxe5 {[%clk 0:02:41]} 11. dxe5 {[%clk 0:02:53]}  Ne4 {[%clk 0:02:40]} 12. Bxe7 {[%clk 0:02:53]}  Qxe7 {[%clk 0:02:39]} 13. Nxe4 {[%clk 0:02:52]}  dxe4 {[%clk 0:02:39]} 14. Bxe4 {[%clk 0:02:53]}  Qb4+ {[%clk 0:02:38]} 15. Kf1 {[%clk 0:02:51]}  f5 {[%clk 0:02:16]} 16. Bxf5 {[%clk 0:02:43]}  Bxf5 {[%clk 0:02:13]} 17. Qxf5 {[%clk 0:02:44]}  Qxb2 {[%clk 0:02:13]} 18. Rd1 {[%clk 0:02:40]}  Qxa2 {[%clk 0:02:10]} 19. f4 {[%clk 0:02:26]}  Rad8 {[%clk 0:02:07]} 20. Qg4 {[%clk 0:02:07]}  Rd5 {[%clk 0:00:46]} 21. h4 {[%clk 0:01:43]}  b5 {[%clk 0:00:36]} 22. Rh3 {[%clk 0:01:38]}  b4 {[%clk 0:00:30]} 23. Rg3 {[%clk 0:01:33]}  Rxd1+ {[%clk 0:00:27]} 24. Qxd1 {[%clk 0:01:34]}  Qc4+ {[%clk 0:00:17]} 25. Kg1 {[%clk 0:01:33]}  Qd5 {[%clk 0:00:17]} 26. Qb1 {[%clk 0:01:16]}  b3 {[%clk 0:00:16]} 27. e4 {[%clk 0:01:12]}  Qd4+ {[%clk 0:00:16]} 28. Kh2 {[%clk 0:01:12]}  b2 {[%clk 0:00:14]} 29. Rb3 {[%clk 0:01:10]}  Qf2 {[%clk 0:00:13]} 30. Rf3 {[%clk 0:01:04]}  Qxh4+ {[%clk 0:00:08]} 31. Kg1 {[%clk 0:01:04]}  Rb8 {[%clk 0:00:08]} 32. Rf2 {[%clk 0:00:57]}  Qd8 {[%clk 0:00:04]} 33. Kh2 {[%clk 0:00:54]}  Qd4 {[%clk 0:00:05]} 34. Rc2 {[%clk 0:00:49]}  c5 {[%clk 0:00:04]} 35. e6 {[%clk 0:00:47]}  h6 {[%clk 0:00:04]} 36. e7 {[%clk 0:00:47]}  Qxe4 {[%clk 0:00:04]} 37. Qa2+ {[%clk 0:00:45]}  Kh7 {[%clk 0:00:04]} 38. Rxb2 {[%clk 0:00:43]}  Rxb2 {[%clk 0:00:03]} 39. Qxb2 {[%clk 0:00:40]}  Qxe7 {[%clk 0:00:04]} 40. Qc2+ {[%clk 0:00:39]}  Kh8 {[%clk 0:00:04]} 41. Qf5 {[%clk 0:00:37]}  Qc7 {[%clk 0:00:04]} 42. Qe6 {[%clk 0:00:34]}  c4 {[%clk 0:00:04]} 43. Qe8+ {[%clk 0:00:34]}  Kh7 {[%clk 0:00:04]} 44. Qe4+ {[%clk 0:00:33]}  g6 {[%clk 0:00:05]} 45. g3 {[%clk 0:00:30]}  c3 {[%clk 0:00:05]} 46. Qc2 {[%clk 0:00:30]}  Qc5 {[%clk 0:00:04]} 47. Qb3 {[%clk 0:00:24]}  c2 {[%clk 0:00:04]} 48. Qf7+ {[%clk 0:00:24]}  Kh8 {[%clk 0:00:04]} 49. Qe8+ {[%clk 0:00:23]}  Kg7 {[%clk 0:00:05]} 50. Qd7+ {[%clk 0:00:22]}  Kf6 {[%clk 0:00:05]} 51. Qd8+ {[%clk 0:00:21]}  Ke6 {[%clk 0:00:05]} 52. Qg8+ {[%clk 0:00:20]}  Kd6 {[%clk 0:00:05]} 53. Qf8+ {[%clk 0:00:19]}  Kc6 {[%clk 0:00:05]} 54. Qc8+ {[%clk 0:00:19]}  Kb5 {[%clk 0:00:05]} 55. Qb7+ {[%clk 0:00:19]}  Ka4 {[%clk 0:00:05]} 56. Qa6+ {[%clk 0:00:18]}  Kb3 {[%clk 0:00:06]} 57. Qd3+ {[%clk 0:00:18]}  Kb2 {[%clk 0:00:05]} 58. Qd2 {[%clk 0:00:18]}  Kb1 {[%clk 0:00:05]} 59. Qd3 {[%clk 0:00:18]}  Kb2 {[%clk 0:00:04]} 60. Qd2 {[%clk 0:00:19]}  Qc3 {[%clk 0:00:05]} 61. Qe2 {[%clk 0:00:17]}  Kb1 {[%clk 0:00:05]} 62. Qe4 {[%clk 0:00:17]}  a5 {[%clk 0:00:05]} 63. Qxg6 {[%clk 0:00:15]}  Ka1 {[%clk 0:00:05]} 64. Qxh6 {[%clk 0:00:12]}  c1=Q {[%clk 0:00:06]} 65. Kh3 {[%clk 0:00:13]}  Qh1+ {[%clk 0:00:06]} 66. Kg4 {[%clk 0:00:13]}  Qxh6 {[%clk 0:00:07]} 67. f5 {[%clk 0:00:11]}  Qcg7+ {[%clk 0:00:08]} 68. Kf3 {[%clk 0:00:12]}  Qh5+ {[%clk 0:00:08]} 69. Kf4 {[%clk 0:00:12]}  Qhg4+ {[%clk 0:00:08]} 70. Ke3 {[%clk 0:00:11]}  Q7d4# {[%clk 0:00:09]} 0-1


[Site "https://www.chess.com"]

[Event "Titled Tuesday Blitz October 18 Late 2022"]
[White "Sukandar, Irine Kharisma"]
[Black "Fernandez Siles, Luis"]
[WhiteFideId "7101937"]
[BlackFideId "2209420"]
[WhiteElo "2301"]
[BlackElo "2186"]
[Result "1-0"]
[Round "04"]
[TimeControl "180+1"]
[Date "2022.10.19"]
[WhiteClock "0:00:46"]
[BlackClock "0:00:10"]

1. d4 {[%clk 0:03:00]}  Nf6 {[%clk 0:02:58]} 2. Bf4 {[%clk 0:03:01]}  g6 {[%clk 0:02:56]} 3. Nc3 {[%clk 0:03:00]}  d5 {[%clk 0:02:56]} 4. e3 {[%clk 0:02:57]}  c6 {[%clk 0:02:55]} 5. h4 {[%clk 0:02:54]}  h5 {[%clk 0:02:55]} 6. Nf3 {[%clk 0:02:52]}  Bg4 {[%clk 0:02:55]} 7. Be2 {[%clk 0:02:52]}  Bxf3 {[%clk 0:02:55]} 8. gxf3 {[%clk 0:02:52]}  Nbd7 {[%clk 0:02:47]} 9. Qd2 {[%clk 0:02:52]}  e6 {[%clk 0:02:40]} 10. e4 {[%clk 0:02:52]}  Bb4 {[%clk 0:02:20]} 11. a3 {[%clk 0:02:44]}  Qa5 {[%clk 0:02:13]} 12. O-O {[%clk 0:02:36]}  Bxc3 {[%clk 0:02:09]} 13. bxc3 {[%clk 0:02:35]}  dxe4 {[%clk 0:02:07]} 14. fxe4 {[%clk 0:02:30]}  Nxe4 {[%clk 0:02:05]} 15. Qd3 {[%clk 0:02:29]}  Qf5 {[%clk 0:01:29]} 16. Bh2 {[%clk 0:02:24]}  O-O {[%clk 0:01:02]} 17. Qe3 {[%clk 0:02:20]}  Nef6 {[%clk 0:00:55]} 18. Rae1 {[%clk 0:02:05]}  Kh7 {[%clk 0:00:48]} 19. Bd6 {[%clk 0:01:54]}  Rg8 {[%clk 0:00:48]} 20. f4 {[%clk 0:01:50]}  Ng4 {[%clk 0:00:41]} 21. Qg3 {[%clk 0:01:40]}  Ndf6 {[%clk 0:00:25]} 22. Bd3 {[%clk 0:01:34]}  Qd5 {[%clk 0:00:25]} 23. Be5 {[%clk 0:01:33]}  Rad8 {[%clk 0:00:17]} 24. Re2 {[%clk 0:01:30]}  c5 {[%clk 0:00:17]} 25. Bxf6 {[%clk 0:01:16]}  Nxf6 {[%clk 0:00:16]} 26. Re5 {[%clk 0:01:16]}  Qd7 {[%clk 0:00:14]} 27. Qg5 {[%clk 0:01:16]}  Qe7 {[%clk 0:00:15]} 28. f5 {[%clk 0:01:16]}  cxd4 {[%clk 0:00:14]} 29. fxg6+ {[%clk 0:00:54]}  fxg6 {[%clk 0:00:13]} 30. Rxf6 {[%clk 0:00:52]}  dxc3 {[%clk 0:00:11]} 31. Qxh5+ {[%clk 0:00:46]}  Kg7 {[%clk 0:00:10]} 32. Qxg6+ {[%clk 0:00:46]}  Kh8 {[%clk 0:00:10]} 33. Rh5+ {[%clk 0:00:46]} 1-0


[Site "https://www.chess.com"]

[Event "Titled Tuesday Blitz October 18 Late 2022"]
[White "Suleymanli, Aydin"]
[Black "Pranav, V"]
[WhiteFideId "13413937"]
[BlackFideId "25060783"]
[WhiteElo "2481"]
[BlackElo "2430"]
[Result "0-1"]
[Round "04"]
[TimeControl "180+1"]
[Date "2022.10.18"]
[WhiteClock "0:00:01"]
[BlackClock "0:00:07"]

1. e4 {[%clk 0:03:00]}  c5 {[%clk 0:02:59]} 2. Nf3 {[%clk 0:02:59]}  d6 {[%clk 0:03:00]} 3. d4 {[%clk 0:03:00]}  cxd4 {[%clk 0:03:01]} 4. Nxd4 {[%clk 0:03:00]}  Nf6 {[%clk 0:03:01]} 5. Nc3 {[%clk 0:03:01]}  a6 {[%clk 0:03:02]} 6. Be3 {[%clk 0:02:54]}  Ng4 {[%clk 0:03:01]} 7. Bc1 {[%clk 0:02:53]}  Nf6 {[%clk 0:03:01]} 8. Be3 {[%clk 0:02:52]}  Ng4 {[%clk 0:03:01]} 9. Bc1 {[%clk 0:02:52]}  g6 {[%clk 0:03:02]} 10. f3 {[%clk 0:02:49]}  Nf6 {[%clk 0:03:01]} 11. Be3 {[%clk 0:02:49]}  Bg7 {[%clk 0:03:02]} 12. Qd2 {[%clk 0:02:50]}  Nbd7 {[%clk 0:02:58]} 13. O-O-O {[%clk 0:02:49]}  b5 {[%clk 0:02:53]} 14. h4 {[%clk 0:02:42]}  Bb7 {[%clk 0:02:50]} 15. g4 {[%clk 0:02:38]}  Ne5 {[%clk 0:02:50]} 16. h5 {[%clk 0:02:33]}  Qa5 {[%clk 0:02:43]} 17. h6 {[%clk 0:02:20]}  Bf8 {[%clk 0:02:42]} 18. Nb3 {[%clk 0:02:19]}  Qc7 {[%clk 0:02:39]} 19. Qf2 {[%clk 0:02:19]}  Rc8 {[%clk 0:02:20]} 20. g5 {[%clk 0:01:36]}  b4 {[%clk 0:02:12]} 21. Bb6 {[%clk 0:01:24]}  Qb8 {[%clk 0:02:03]} 22. Nd5 {[%clk 0:01:15]}  Nfd7 {[%clk 0:01:56]} 23. Bd4 {[%clk 0:01:02]}  e6 {[%clk 0:01:47]} 24. Ne3 {[%clk 0:00:49]}  Rg8 {[%clk 0:01:45]} 25. Bg2 {[%clk 0:00:36]}  Nc6 {[%clk 0:01:39]} 26. Ng4 {[%clk 0:00:36]}  Be7 {[%clk 0:01:34]} 27. f4 {[%clk 0:00:34]}  a5 {[%clk 0:01:34]} 28. Be3 {[%clk 0:00:32]}  a4 {[%clk 0:01:20]} 29. Nd2 {[%clk 0:00:31]}  b3 {[%clk 0:01:19]} 30. axb3 {[%clk 0:00:25]}  Nb4 {[%clk 0:01:20]} 31. Nc4 {[%clk 0:00:23]}  axb3 {[%clk 0:01:18]} 32. cxb3 {[%clk 0:00:24]}  Qa8 {[%clk 0:01:09]} 33. Kd2 {[%clk 0:00:09]}  Bxe4 {[%clk 0:01:09]} 34. Bxe4 {[%clk 0:00:07]}  Qxe4 {[%clk 0:01:10]} 35. Ke2 {[%clk 0:00:07]}  Qc2+ {[%clk 0:01:02]} 36. Kf3 {[%clk 0:00:07]}  Qxb3 {[%clk 0:01:00]} 37. Nxd6+ {[%clk 0:00:08]}  Bxd6 {[%clk 0:00:56]} 38. Rxd6 {[%clk 0:00:09]}  Nd5 {[%clk 0:00:56]} 39. Ra1 {[%clk 0:00:03]}  Qb7 {[%clk 0:00:55]} 40. Ra7 {[%clk 0:00:02]}  Qb3 {[%clk 0:00:36]} 41. Rdxd7 {[%clk 0:00:02]}  Rc2 {[%clk 0:00:15]} 42. Qe1 {[%clk 0:00:03]}  Qb5 {[%clk 0:00:08]} 43. Nf6+ {[%clk 0:00:02]}  Nxf6 {[%clk 0:00:09]} 44. Re7+ {[%clk 0:00:03]}  Kd8 {[%clk 0:00:09]} 45. Qd1+ {[%clk 0:00:01]}  Qd5+ {[%clk 0:00:07]} 0-1


[Site "https://www.chess.com"]